fUST/lending_fUST_20251208
["ID","MTS","AMOUNT","RATE_DAILY","PERIOD"]
[397160355,1765153854125,-2465.07,0.00010606,2]
[397160356,1765153854137,-908.11,0.00010606,2]
[397160357,1765153854147,-865.15,0.00010606,2]
[397160358,1765153854156,-1004.03,0.00010606,2]
[397160359,1765153854165,-1262.38,0.00010606,2]
[397160360,1765153854175,-500.0,0.00010606,2]
[397160361,1765153854184,-690.41,0.00010606,2]
[397160362,1765153854193,-1393.17,0.00010606,2]
[397160363,1765153854202,-500.0,0.00010606,2]
[397160365,1765153854211,-500.0,0.00010606,2]
[397160366,1765153854221,-1031.13,0.00010606,2]
[397160368,1765153854230,-500.0,0.00010606,2]
[397160370,1765153854239,-500.0,0.00010606,2]
[397160372,1765153854248,-295.73037389,0.00010606,2]
[397160374,1765153854257,-5086.13,0.00010606,2]
[397160376,1765153854266,-500.0,0.00010606,2]
[397160378,1765153854276,-500.0,0.00010606,2]
[397160380,1765153854286,-500.0,0.00010606,2]
[397160382,1765153854295,-941.62,0.00010606,2]
[397160384,1765153854304,-500.0,0.00010606,2]
[397160386,1765153854316,-500.0,0.00010606,2]
[397160388,1765153854325,-700.17,0.00010606,2]
[397160390,1765153854334,-541.01,0.00010606,2]
[397160392,1765153854343,-500.0,0.00010606,2]
[397160394,1765153854352,-911.3,0.00010606,2]
[397160396,1765153854362,-2770.67,0.00010606,2]
[397160398,1765153854371,-500.0,0.00010606,2]
[397160400,1765153854380,-500.0,0.00010606,2]
[397160402,1765153854389,-1409.33,0.00010606,2]
[397160404,1765153854399,-500.0,0.00010606,2]
[397160406,1765153854408,-836.0,0.00010606,2]
[397160408,1765153854417,-500.0,0.00010606,2]
[397160410,1765153854426,-1152.95,0.00010606,2]
[397160412,1765153854434,-500.0,0.00010606,2]
[397160414,1765153854443,-500.0,0.00010606,2]
[397160416,1765153854453,-1958.16,0.00010606,2]
[397160418,1765153854463,-787.0,0.00010606,2]
[397160420,1765153854472,-500.0,0.00010606,2]
[397160422,1765153854482,-500.0,0.00010606,2]
[397160424,1765153854490,-500.0,0.00010606,2]
[397160426,1765153854500,-375.81383185,0.00010606,2]
[397160428,1765153854509,-728.24,0.00010606,2]
[397160430,1765153854518,-1519.3,0.00010606,2]
[397160432,1765153854527,-500.0,0.00010606,2]
[397160434,1765153854536,-500.0,0.00010606,2]
[397160436,1765153854545,-616.79,0.00010606,2]
[397160438,1765153854554,-500.0,0.00010606,2]
[397160440,1765153854563,-553.42,0.00010606,2]
[397160442,1765153854572,-751.04,0.00010606,2]
[397160444,1765153854581,-500.0,0.00010606,2]
[397160445,1765153854590,-643.14,0.00010606,2]
[397160447,1765153854599,-1200.77,0.00010606,2]
[397160449,1765153854608,-732.6,0.00010606,2]
[397160451,1765153854617,-2437.84,0.00010606,2]
[397160453,1765153854627,-1101.93,0.00010606,2]
[397160455,1765153854636,-500.0,0.00010606,2]
[397160457,1765153854645,-500.0,0.00010606,2]
[397160459,1765153854654,-1092.59,0.00010606,2]
[397160461,1765153854663,-500.0,0.00010607,2]
[397160463,1765153854672,-107948.88,0.00010607,2]
[397160465,1765153854682,-500.0,0.00010608,2]
[397160467,1765153854691,-500.0,0.00010608,2]
[397160469,1765153854701,-500.0,0.00010608,2]
[397160471,1765153854711,-500.0,0.00010608,2]
[397160473,1765153854720,-500.0,0.00010608,2]
[397160475,1765153854729,-500.0,0.00010608,2]
[397160477,1765153854738,-500.0,0.00010608,2]
[397160479,1765153854748,-500.0,0.00010608,2]
[397160481,1765153854757,-600.0,0.00010608,2]
[397160483,1765153854767,-500.51323343,0.00010608,2]
[397160485,1765153854776,-500.0,0.00010608,2]
[397160487,1765153854786,-500.0,0.00010608,2]
[397160489,1765153854796,-500.0,0.00010608,2]
[397160491,1765153854805,-500.0,0.00010608,2]
[397160493,1765153854815,-1197.88,0.00010608,2]
[397160495,1765153854824,-500.71897989,0.00010608,2]
[397160497,1765153854833,-500.2849516,0.00010608,2]
[397160499,1765153854842,-500.0,0.00010608,2]
[397160501,1765153854851,-500.46225289,0.00010608,2]
[397160503,1765153854861,-500.46070831,0.00010608,2]
[397160505,1765153854871,-500.0,0.00010608,2]
[397160507,1765153854880,-500.0,0.00010608,2]
[397160510,1765153854890,-500.0,0.00010608,2]
[397160511,1765153854900,-500.0,0.00010608,2]
[397160513,1765153854910,-500.0,0.00010608,2]
[397160516,1765153854919,-500.0,0.00010608,2]
[397160517,1765153854929,-500.0,0.00010608,2]
[397160520,1765153854939,-500.0,0.00010608,2]
[397160521,1765153854948,-500.0,0.00010608,2]
[397160523,1765153854957,-500.70604147,0.00010608,2]
[397160525,1765153854966,-692.06,0.00010608,2]
[397160528,1765153854976,-500.0,0.00010608,2]
[397160530,1765153854986,-549.27,0.00010608,2]
[397160531,1765153854998,-500.0,0.00010608,2]
[397160534,1765153855008,-793.04,0.00010608,2]
[397160536,1765153855018,-500.0,0.00010608,2]
[397160538,1765153855029,-500.0,0.00010608,2]
[397160539,1765153855038,-500.0,0.00010608,2]
[397160541,1765153855050,-500.37338781,0.00010608,2]
[397160543,1765153855059,-500.25926478,0.00010608,2]
[397160545,1765153855069,-500.61078728,0.00010608,2]
[397160547,1765153855078,-706.0,0.00010608,2]
[397160549,1765153855087,-500.0,0.00010608,2]
[397160551,1765153855097,-501.01289664,0.00010608,2]
[397160553,1765153855106,-500.0,0.00010608,2]
[397160555,1765153855115,-500.0,0.00010608,2]
[397160558,1765153855125,-500.49917035,0.00010608,2]
[397160559,1765153855136,-500.0,0.00010608,2]
[397160561,1765153855146,-632.12,0.00010608,2]
[397160563,1765153855155,-500.0,0.00010608,2]
[397160565,1765153855165,-501.05781992,0.00010608,2]
[397160567,1765153855174,-500.0,0.00010608,2]
[397160569,1765153855186,-500.0,0.00010608,2]
[397160571,1765153855196,-2427.49,0.00010608,2]
[397160573,1765153855206,-500.4948148,0.00010608,2]
[397160575,1765153855216,-1000.0,0.00010608,2]
[397160577,1765153855225,-500.0,0.00010608,2]
[397160579,1765153855235,-500.0,0.00010608,2]
[397160581,1765153855244,-914.52,0.00010608,2]
[397160584,1765153855253,-226.7,0.00010608,2]
[397160585,1765153855262,-500.0,0.00010608,2]
[397160587,1765153855271,-500.0,0.00010608,2]
[397160589,1765153855280,-500.0,0.00010608,2]
[397160607,1765153855423,-500.0,0.00010608,2]
[397160609,1765153855446,-500.0,0.00010608,2]
[397160611,1765153855456,-461.93050363,0.00010608,2]
[397160613,1765153855464,-515.77,0.00010608,2]
[397160615,1765153855474,-500.0,0.00010608,2]
[397160617,1765153855483,-500.0,0.00010608,2]
[397160619,1765153855492,-417.42795004,0.00010608,2]
[397160621,1765153855501,-500.0,0.00010608,2]
[397160623,1765153855510,-1434.24,0.00010608,2]
[397160625,1765153855519,-500.0,0.00010608,2]
[397160627,1765153855529,-500.0,0.00010608,2]
[397160629,1765153855538,-500.0,0.00010608,2]
[397160631,1765153855546,-500.0,0.00010608,2]
[397160633,1765153855555,-500.23868511,0.00010608,2]
[397160635,1765153855564,-1053.58,0.00010608,2]
[397160637,1765153855574,-560.93,0.00010608,2]
[397160639,1765153855583,-500.0,0.00010608,2]
[397160641,1765153855592,-500.0,0.00010608,2]
[397160642,1765153855602,-500.3620263,0.00010608,2]
[397160644,1765153855611,-500.0,0.00010608,2]
[397160647,1765153855622,-500.4827461,0.00010608,2]
[397160648,1765153855631,-500.0,0.00010608,2]
[397160651,1765153855643,-911.58,0.00010608,2]
[397160653,1765153855652,-709.24,0.00010608,2]
[397160654,1765153855661,-1289.86,0.00010608,2]
[397160655,1765153855671,-908.74,0.00010608,2]
[397160657,1765153855680,-739.16,0.00010608,2]
[397160659,1765153855689,-1173.15,0.00010608,2]
[397160661,1765153855698,-500.0,0.00010608,2]
[397160663,1765153855707,-500.20153944,0.00010608,2]
[397160665,1765153855717,-500.0,0.00010608,2]
[397160667,1765153855726,-500.0,0.00010608,2]
[397160669,1765153855735,-500.26469769,0.00010608,2]
[397160671,1765153855744,-1946.88,0.00010608,2]
[397160673,1765153855753,-500.0,0.00010608,2]
[397160675,1765153855762,-500.0,0.00010608,2]
[397160677,1765153855771,-569.02,0.00010608,2]
[397160679,1765153855780,-343.72234254,0.00010608,2]
[397160680,1765153855790,-500.0,0.00010608,2]
[397160682,1765153855798,-1215.76,0.00010608,2]
[397160684,1765153855808,-500.0,0.00010608,2]
[397160686,1765153855817,-508.5824092,0.00010608,2]
[397160688,1765153855826,-500.0,0.00010608,2]
[397160690,1765153855835,-500.0,0.00010608,2]
[397160692,1765153855844,-500.0,0.00010608,2]
[397160694,1765153855854,-500.0,0.00010608,2]
[397160696,1765153855867,-500.0,0.00010608,2]
[397160698,1765153855877,-500.0,0.00010608,2]
[397160700,1765153855886,-1774.46,0.00010608,2]
[397160702,1765153855895,-500.0,0.00010608,2]
[397160704,1765153855904,-500.0,0.00010608,2]
[397160706,1765153855913,-585.44,0.00010608,2]
[397160708,1765153855922,-609.41,0.00010608,2]
[397160710,1765153855931,-500.0,0.00010608,2]
[397160712,1765153855940,-685.33,0.00010608,2]
[397160714,1765153855949,-500.0,0.00010608,2]
[397160716,1765153855958,-753.75,0.00010608,2]
[397160718,1765153855967,-907.92,0.00010608,2]
[397160720,1765153855976,-500.0,0.00010608,2]
[397160722,1765153855985,-782.08,0.00010608,2]
[397160723,1765153855994,-500.0,0.00010608,2]
[397160725,1765153856003,-500.0,0.00010608,2]
[397160727,1765153856012,-500.0,0.00010608,2]
[397160729,1765153856022,-270.67086805,0.00010608,2]
[397160731,1765153856031,-500.92559859,0.00010608,2]
[397160733,1765153856039,-500.0,0.00010608,2]
[397160735,1765153856049,-500.0,0.00010608,2]
[397160737,1765153856058,-500.0,0.00010608,2]
[397160739,1765153856066,-500.0,0.00010608,2]
[397160741,1765153856077,-500.0,0.00010608,2]
[397160743,1765153856086,-500.0,0.00010608,2]
[397160745,1765153856095,-500.0,0.00010608,2]
[397160747,1765153856105,-500.0,0.00010608,2]
[397160749,1765153856114,-500.53847976,0.00010608,2]
[397160751,1765153856124,-1821.02,0.00010608,2]
[397160753,1765153856137,-500.0,0.00010608,2]
[397160755,1765153856146,-500.0,0.00010608,2]
[397160757,1765153856155,-500.49963041,0.00010608,2]
[397160759,1765153856164,-434.28881195,0.00010608,2]
[397160848,1765153857098,-1377.96,0.00010132,2]
[397160850,1765153857108,-500.0,0.0001023,2]
[397160852,1765153857118,-500.0,0.00010232,2]
[397160854,1765153857127,-1377.96,0.00010406,2]
[397160856,1765153857140,-500.0,0.00010504,2]
[397160858,1765153857149,-352.85539493,0.00010506,2]
[397160860,1765153857158,-65.71118805,0.00010608,2]
[397160862,1765153857168,-500.0,0.00010608,2]
[397160864,1765153857177,-56.75107688,0.00010608,2]
[397160964,1765153858147,-500.0,0.00010232,2]
[397160966,1765153858157,-399.31076779,0.00010342,2]
[397160968,1765153858166,-443.24892312,0.00010608,2]
[397160970,1765153858175,-248.4833169,0.00010608,2]
[397161023,1765153858671,-500.0,0.00010132,2]
[397161025,1765153858681,-500.0,0.00010334,2]
[397161027,1765153858690,-251.5166831,0.00010608,2]
[397161029,1765153858699,-500.0,0.00010608,2]
[397161031,1765153858709,-500.0,0.00010608,2]
[397161033,1765153858718,-531.48,0.00010608,2]
[397161035,1765153858727,-500.0,0.00010608,2]
[397161037,1765153858738,-500.22751156,0.00010608,2]
[397161039,1765153858748,-531.18779756,0.00010608,2]
[397161042,1765153858758,-1175.03,0.00010608,2]
[397161043,1765153858768,-500.0,0.00010608,2]
[397161046,1765153858777,-507.98069842,0.00010608,2]
[397161047,1765153858789,-881.77,0.00010608,2]
[397161049,1765153858799,-500.0,0.00010608,2]
[397161051,1765153858809,-500.0,0.00010608,2]
[397161054,1765153858819,-507.94,0.00010608,2]
[397161056,1765153858829,-500.0,0.00010608,2]
[397161057,1765153858839,-890.93,0.00010608,2]
[397161060,1765153858849,-500.0,0.00010608,2]
[397161062,1765153858858,-673.79,0.00010608,2]
[397161064,1765153858867,-500.0,0.00010608,2]
[397161066,1765153858877,-500.0,0.00010608,2]
[397161068,1765153858886,-1692.59,0.00010608,2]
[397161069,1765153858895,-500.0,0.00010608,2]
[397161071,1765153858904,-500.0,0.00010608,2]
[397161073,1765153858913,-500.0,0.00010608,2]
[397161075,1765153858922,-1081.6,0.00010608,2]
[397161077,1765153858931,-500.0,0.00010608,2]
[397161079,1765153858940,-1011.28,0.00010608,2]
[397161081,1765153858949,-572.8751439,0.00010608,2]
[397161083,1765153858958,-501.49348507,0.00010608,2]
[397161085,1765153858967,-500.0,0.00010608,2]
[397161087,1765153858976,-500.0,0.00010608,2]
[397161089,1765153858985,-891.53,0.00010608,2]
[397161091,1765153858994,-500.0,0.00010608,2]
[397161093,1765153859003,-898.72,0.00010608,2]
[397161095,1765153859012,-500.0,0.00010608,2]
[397161097,1765153859021,-500.0,0.00010608,2]
[397161099,1765153859030,-592.04,0.00010608,2]
[397161101,1765153859040,-500.0,0.00010608,2]
[397161103,1765153859050,-500.0,0.00010608,2]
[397161105,1765153859059,-3263.35,0.00010608,2]
[397161107,1765153859068,-500.0,0.00010608,2]
[397161109,1765153859078,-500.0,0.00010608,2]
[397161111,1765153859087,-507.12,0.00010608,2]
[397161113,1765153859096,-867.3,0.00010608,2]
[397161115,1765153859105,-807.03,0.00010608,2]
[397161117,1765153859115,-771.78,0.00010608,2]
[397161119,1765153859124,-500.0,0.00010608,2]
[397161121,1765153859134,-500.0,0.00010608,2]
[397161123,1765153859147,-513.34,0.00010608,2]
[397161125,1765153859156,-500.0,0.00010608,2]
[397161127,1765153859165,-527.81101345,0.00010608,2]
[397161129,1765153859174,-500.71429256,0.00010608,2]
[397161131,1765153859185,-500.48777946,0.00010608,2]
[397161132,1765153859194,-500.0,0.00010608,2]
[397161134,1765153859204,-1278.7,0.00010608,2]
[397161136,1765153859215,-500.0,0.00010608,2]
[397161138,1765153859224,-500.42854704,0.00010608,2]
[397161140,1765153859233,-500.0,0.00010608,2]
[397161143,1765153859243,-500.0,0.00010608,2]
[397161144,1765153859253,-500.0,0.00010608,2]
[397161146,1765153859262,-500.0,0.00010608,2]
[397161149,1765153859272,-500.0,0.00010608,2]
[397161150,1765153859281,-500.0,0.00010608,2]
[397161153,1765153859291,-522.91837353,0.00010608,2]
[397161154,1765153859300,-500.0,0.00010608,2]
[397161156,1765153859309,-415.35419079,0.00010608,2]
[397161158,1765153859318,-500.0,0.00010608,2]
[397161160,1765153859327,-500.0,0.00010608,2]
[397161162,1765153859336,-501.01862591,0.00010608,2]
[397161164,1765153859346,-367.14750107,0.00010608,2]
[397161166,1765153859355,-500.0,0.00010608,2]
[397161168,1765153859364,-500.0,0.00010608,2]
[397161170,1765153859375,-500.36428029,0.00010608,2]
[397161172,1765153859384,-932.37,0.00010608,2]
[397161174,1765153859394,-1010.79,0.00010608,2]
[397161176,1765153859403,-500.28566222,0.00010608,2]
[397161178,1765153859413,-500.0,0.00010608,2]
[397161180,1765153859423,-1441.41,0.00010608,2]
[397161182,1765153859432,-862.35,0.00010608,2]
[397161184,1765153859442,-656.41,0.00010608,2]
[397161186,1765153859451,-1241.11,0.00010608,2]
[397161188,1765153859460,-500.0,0.00010608,2]
[397161190,1765153859470,-500.0,0.00010608,2]
[397161192,1765153859479,-500.0,0.00010608,2]
[397161194,1765153859488,-500.0,0.00010608,2]
[397161196,1765153859497,-500.0,0.00010608,2]
[397161198,1765153859506,-500.0,0.00010608,2]
[397161200,1765153859515,-500.0,0.00010608,2]
[397161202,1765153859524,-500.79733668,0.00010608,2]
[397161204,1765153859534,-500.0,0.00010608,2]
[397161206,1765153859543,-620.72,0.00010608,2]
[397161208,1765153859552,-518.83,0.00010608,2]
[397161210,1765153859561,-500.0,0.00010608,2]
[397161212,1765153859571,-500.19657426,0.00010608,2]
[397161214,1765153859580,-488.24600704,0.00010631,2]
[397161216,1765153859590,-500.0,0.00010643,2]
[397161218,1765153859599,-500.0,0.00010643,2]
[397161220,1765153859608,-2286.59882491,0.00010656,2]
[397161222,1765153859618,-2312.83697232,0.00010672,2]
[397161224,1765153859629,-407.0942608,0.0001068,2]
[397161226,1765153859639,-500.0,0.0001068,2]
[397161228,1765153859648,-5112.7,0.0001068,2]
[397161230,1765153859657,-1502.27,0.0001068,2]
[397161232,1765153859666,-895.81,0.0001068,2]
[397161233,1765153859675,-500.0,0.0001068,2]
[397161235,1765153859683,-7767.82,0.0001068,2]
[397161237,1765153859693,-500.0,0.0001068,2]
[397161239,1765153859702,-500.0,0.0001068,2]
[397161241,1765153859711,-961.81,0.0001068,2]
[397161243,1765153859720,-500.0,0.0001068,2]
[397161245,1765153859730,-500.0,0.0001068,2]
[397161247,1765153859741,-500.0,0.0001068,2]
[397161249,1765153859752,-500.0,0.0001068,2]
[397161251,1765153859762,-521.72,0.0001068,2]
[397161253,1765153859772,-1377.96,0.0001068,2]
[397161255,1765153859781,-151.0,0.00010685,2]
[397161257,1765153859791,-151.0,0.00010685,2]
[397161259,1765153859800,-151.0,0.00010685,2]
[397161261,1765153859810,-180.069185,0.00010685,2]
[397161262,1765153859819,-198.949816,0.00010685,2]
[397161264,1765153859828,-299.914741,0.00010685,2]
[397161266,1765153859837,-391.124188,0.00010685,2]
[397161268,1765153859846,-391.124188,0.00010685,2]
[397161270,1765153859855,-391.124188,0.00010685,2]
[397161272,1765153859865,-391.124188,0.00010685,2]
[397161274,1765153859876,-391.124188,0.00010685,2]
[397161276,1765153859885,-391.124188,0.00010685,2]
[397161278,1765153859894,-391.124188,0.00010685,2]
[397161280,1765153859903,-391.124188,0.00010685,2]
[397161282,1765153859912,-391.124188,0.00010685,2]
[397161284,1765153859921,-391.124188,0.00010685,2]
[397161286,1765153859930,-391.124188,0.00010685,2]
[397161303,1765153860093,-391.124188,0.00010685,2]
[397161305,1765153860102,-391.124188,0.00010685,2]
[397161307,1765153860111,-391.124188,0.00010685,2]
[397161309,1765153860122,-391.124188,0.00010685,2]
[397161311,1765153860131,-391.124188,0.00010685,2]
[397161313,1765153860144,-391.124188,0.00010685,2]
[397161315,1765153860153,-391.124188,0.00010685,2]
[397161317,1765153860162,-391.124188,0.00010685,2]
[397161319,1765153860171,-391.124191,0.00010685,2]
[397161321,1765153860181,-151.0,0.00010685,2]
[397161323,1765153860190,-151.0,0.00010685,2]
[397161325,1765153860199,-151.0,0.00010685,2]
[397161326,1765153860209,-151.0,0.00010685,2]
[397161329,1765153860221,-151.0,0.00010685,2]
[397161330,1765153860230,-500.0,0.00010716,2]
[397161332,1765153860240,-500.0,0.00010716,2]
[397161334,1765153860249,-1601.04,0.00010716,2]
[397161336,1765153860259,-10595.96,0.00010716,2]
[397161338,1765153860268,-661.99,0.00010716,2]
[397161340,1765153860279,-1725.78,0.00010716,2]
[397161342,1765153860288,-500.0,0.00010717,2]
[397161344,1765153860297,-500.0,0.00010717,2]
[397161346,1765153860306,-2299.79,0.00010717,2]
[397161348,1765153860315,-2254.91,0.00010717,2]
[397161350,1765153860324,-654.36,0.00010717,2]
[397161352,1765153860333,-1887.02,0.00010717,2]
[397161354,1765153860342,-974.95,0.00010717,2]
[397161356,1765153860353,-808.23,0.00010717,2]
[397161358,1765153860366,-8630.89,0.00010717,2]
[397161360,1765153860375,-678.7,0.00010717,2]
[397161362,1765153860384,-1393.08,0.00010717,2]
[397161364,1765153860393,-1429.0,0.00010717,2]
[397161366,1765153860402,-786.94,0.00010717,2]
[397161367,1765153860411,-946.28,0.00010717,2]
[397161369,1765153860421,-3077.87,0.00010717,2]
[397161371,1765153860430,-5051.04,0.00010717,2]
[397161373,1765153860439,-2887.96,0.00010717,2]
[397161375,1765153860448,-722.55,0.00010717,2]
[397161377,1765153860458,-500.0,0.00010717,2]
[397161379,1765153860467,-1790.75,0.00010717,2]
[397161381,1765153860476,-500.0,0.00010717,2]
[397161383,1765153860485,-500.0,0.00010717,2]
[397161384,1765153860495,-1270.51,0.00010717,2]
[397161386,1765153860504,-1485.81,0.00010717,2]
[397161388,1765153860513,-2424.75,0.00010717,2]
[397161390,1765153860523,-500.0,0.00010717,2]
[397161392,1765153860532,-2080.23,0.00010717,2]
[397161394,1765153860542,-1342.63,0.00010717,2]
[397161396,1765153860551,-950.97,0.00010717,2]
[397161398,1765153860561,-500.0,0.00010717,2]
[397161400,1765153860571,-2675.22,0.00010717,2]
[397161402,1765153860580,-500.0,0.00010778,2]
[397161404,1765153860589,-500.0,0.00010778,2]
[397161406,1765153860599,-500.0,0.00010778,2]
[397161408,1765153860608,-500.0,0.00010778,2]
[397161410,1765153860618,-652.57,0.00010778,2]
[397161411,1765153860627,-1733.82,0.00010778,2]
[397161413,1765153860636,-500.0,0.00010778,2]
[397161415,1765153860645,-500.0,0.00010778,2]
[397161417,1765153860654,-726.34,0.00010778,2]
[397161419,1765153860664,-500.0,0.00010778,2]
[397161421,1765153860674,-193.07911978,0.00010778,2]
[397161423,1765153860683,-744.6,0.00010778,2]
[397161425,1765153860694,-500.0,0.00010778,2]
[397161427,1765153860702,-655.75,0.00010778,2]
[397161429,1765153860711,-771.57,0.00010778,2]
[397161431,1765153860720,-335.71262388,0.00010778,2]
[397161433,1765153860729,-684.47,0.00010778,2]
[397161435,1765153860739,-748.63,0.00010778,2]
[397161436,1765153860747,-501.13283293,0.00010778,2]
[397161438,1765153860756,-500.0,0.00010778,2]
[397161440,1765153860766,-500.0,0.00010778,2]
[397161442,1765153860775,-500.0,0.00010778,2]
[397161444,1765153860784,-500.0,0.00010778,2]
[397161446,1765153860794,-2834.23,0.00010778,2]
[397161448,1765153860804,-500.0,0.00010778,2]
[397161450,1765153860813,-506.0,0.00010778,2]
[397161452,1765153860821,-500.69710223,0.00010778,2]
[397161454,1765153860831,-1813.48,0.00010778,2]
[397161456,1765153860840,-735.15,0.00010778,2]
[397161458,1765153860849,-500.0,0.00010778,2]
[397161460,1765153860858,-500.0,0.00010778,2]
[397161462,1765153860868,-546.45,0.00010778,2]
[397161463,1765153860878,-1230.04,0.00010778,2]
[397161465,1765153860887,-500.0,0.00010778,2]
[397161467,1765153860896,-1263.45,0.00010778,2]
[397161469,1765153860905,-1422.99,0.00010778,2]
[397161471,1765153860915,-651.12,0.00010778,2]
[397161473,1765153860923,-500.0,0.00010778,2]
[397161475,1765153860933,-1203.71,0.00010778,2]
[397161477,1765153860942,-500.0,0.00010778,2]
[397161479,1765153860951,-500.0,0.00010778,2]
[397161481,1765153860960,-1325.07,0.00010778,2]
[397161483,1765153860969,-1564.2,0.00010778,2]
[397161484,1765153860979,-500.0,0.00010778,2]
[397161486,1765153860988,-500.0,0.00010778,2]
[397161488,1765153860997,-1631.85,0.00010778,2]
[397161490,1765153861007,-500.0,0.00010778,2]
[397161492,1765153861016,-2670.11,0.00010778,2]
[397161494,1765153861025,-564.14,0.00010778,2]
[397161496,1765153861034,-2211.25,0.00010778,2]
[397161498,1765153861044,-979.13,0.00010778,2]
[397161500,1765153861053,-508.862522,0.00010778,2]
[397161502,1765153861063,-500.0,0.00010778,2]
[397161504,1765153861072,-2381.75,0.00010778,2]
[397161505,1765153861081,-886.02,0.00010778,2]
[397161507,1765153861091,-630.05,0.00010778,2]
[397161509,1765153861101,-609.31,0.00010778,2]
[397161511,1765153861110,-637.93,0.00010778,2]
[397161513,1765153861119,-3624.79,0.00010778,2]
[397161515,1765153861130,-500.0,0.00010778,2]
[397161517,1765153861142,-2236.9,0.00010778,2]
[397161519,1765153861151,-916.03,0.00010778,2]
[397161521,1765153861161,-500.0,0.00010778,2]
[397161523,1765153861172,-500.0,0.00010778,2]
[397161525,1765153861183,-500.0,0.00010778,2]
[397161527,1765153861193,-500.0,0.00010778,2]
[397161529,1765153861203,-500.0,0.00010778,2]
[397161531,1765153861215,-500.0,0.00010778,2]
[397161533,1765153861226,-912.38,0.00010778,2]
[397161534,1765153861236,-1864.22,0.00010778,2]
[397161536,1765153861246,-1335.69,0.00010778,2]
[397161538,1765153861255,-500.0,0.00010778,2]
[397161540,1765153861265,-1021.74,0.00010778,2]
[397161542,1765153861275,-8172.28,0.00010778,2]
[397161544,1765153861285,-500.0,0.00010778,2]
[397161546,1765153861295,-500.0,0.00010778,2]
[397161548,1765153861305,-1999.6,0.00010778,2]
[397161550,1765153861315,-958.09,0.00010778,2]
[397161553,1765153861331,-500.0,0.00010778,2]
[397161555,1765153861349,-808.38,0.00010778,2]
[397161558,1765153861362,-1557.97,0.00010778,2]
[397161560,1765153861379,-2249.82,0.00010778,2]
[397161563,1765153861396,-703.19,0.00010778,2]
[397161566,1765153861413,-4417.32,0.00010778,2]
[397161568,1765153861430,-500.0,0.00010778,2]
[397161571,1765153861445,-500.0,0.00010778,2]
[397161573,1765153861459,-685.84,0.00010778,2]
[397161576,1765153861474,-500.0,0.00010778,2]
[397161578,1765153861488,-1535.4,0.00010778,2]
[397161580,1765153861503,-500.0,0.00010778,2]
[397161583,1765153861517,-500.0,0.00010778,2]
[397161585,1765153861533,-500.0,0.00010778,2]
[397161588,1765153861551,-1598.25,0.00010778,2]
[397161591,1765153861567,-380.33031461,0.00010778,2]
[397161593,1765153861579,-500.0,0.00010778,2]
[397161595,1765153861594,-277.31757186,0.00010778,2]
[397161598,1765153861611,-1846.53,0.00010778,2]
[397161600,1765153861623,-656.39,0.00010778,2]
[397161603,1765153861638,-500.0,0.00010778,2]
[397161605,1765153861651,-18068.84,0.00010778,2]